fUST/lending_fUST_20240705
["ID","MTS","AMOUNT","RATE_DAILY","PERIOD"]
[331175709,1720119042991,-500.0,0.00013972,2]
[331175710,1720119043000,-500.0,0.00013972,2]
[331175711,1720119043009,-500.0,0.00013972,2]
[331175712,1720119043021,-500.0,0.00013972,2]
[331175713,1720119043030,-500.0,0.00013972,2]
[331175714,1720119043039,-500.0,0.00013972,2]
[331175715,1720119043049,-500.0,0.00013972,2]
[331175716,1720119043058,-500.0,0.00013972,2]
[331175717,1720119043067,-500.0,0.00013972,2]
[331175718,1720119043078,-514.09850832,0.00013972,2]
[331175719,1720119043087,-500.0,0.00013972,2]
[331175720,1720119043096,-500.0,0.00013972,2]
[331175721,1720119043107,-500.0,0.00013972,2]
[331175732,1720119043200,-500.0,0.00013972,2]
[331175735,1720119043220,-500.0,0.00013972,2]
[331175738,1720119043229,-500.0,0.00013972,2]
[331175741,1720119043239,-500.0,0.00013972,2]
[331175743,1720119043248,-537.19386008,0.00013972,2]
[331175746,1720119043258,-500.0,0.00013972,2]
[331175749,1720119043269,-500.0,0.00013972,2]
[331175751,1720119043279,-500.0,0.00013972,2]
[331175753,1720119043288,-500.0,0.00013972,2]
[331175754,1720119043297,-500.0,0.00013972,2]
[331175755,1720119043307,-500.0,0.00013972,2]
[331175756,1720119043317,-500.0,0.00013972,2]
[331175757,1720119043326,-500.0,0.00013972,2]
[331175758,1720119043336,-500.0,0.00013972,2]
[331175759,1720119043347,-156.51337627,0.00013972,2]
[331175760,1720119043356,-500.0,0.00013972,2]
[331175761,1720119043365,-500.0,0.00013972,2]
[331175762,1720119043374,-500.0,0.00013972,2]
[331175763,1720119043384,-432.39698773,0.00013972,2]
[331175764,1720119043393,-500.0,0.00013972,2]
[331175765,1720119043403,-500.0,0.00013972,2]
[331175766,1720119043413,-912.43,0.00013972,2]
[331175767,1720119043422,-500.0,0.00013972,2]
[331175768,1720119043431,-500.0,0.00013972,2]
[331175769,1720119043441,-500.0,0.00013972,2]
[331175770,1720119043450,-500.0,0.00013972,2]
[331175771,1720119043459,-500.0,0.00013972,2]
[331175772,1720119043469,-500.0,0.00013972,2]
[331175773,1720119043478,-500.0,0.00013972,2]
[331175774,1720119043488,-500.0,0.00013972,2]
[331175775,1720119043497,-500.0,0.00013972,2]
[331175776,1720119043507,-500.0,0.00013972,2]
[331175777,1720119043516,-500.0,0.00013972,2]
[331175778,1720119043525,-871.03,0.00013972,2]
[331175779,1720119043535,-500.0,0.00013972,2]
[331175780,1720119043544,-500.0,0.00013972,2]
[331175781,1720119043553,-500.0,0.00013972,2]
[331175782,1720119043562,-4341.69,0.00013972,2]
[331175783,1720119043571,-500.0,0.00013972,2]
[331175784,1720119043581,-500.0,0.00013972,2]
[331175785,1720119043590,-472.05498407,0.00013972,2]
[331175787,1720119043600,-500.0,0.00013972,2]
[331175789,1720119043609,-500.0,0.00013972,2]
[331175791,1720119043618,-500.0,0.00013972,2]
[331175792,1720119043628,-500.0,0.00013972,2]
[331175793,1720119043637,-477.2662246,0.00013972,2]
[331175794,1720119043646,-500.0,0.00013972,2]
[331175795,1720119043657,-500.0,0.00013972,2]
[331175796,1720119043666,-2501.76,0.00013972,2]
[331175797,1720119043675,-558.84,0.00013972,2]
[331175798,1720119043685,-500.0,0.00013972,2]
[331175799,1720119043694,-510.3126572,0.00013972,2]
[331175800,1720119043703,-500.0,0.00013972,2]
[331175801,1720119043712,-644.76,0.00013972,2]
[331175802,1720119043721,-500.0,0.00013972,2]
[331175803,1720119043731,-500.0,0.00013972,2]
[331175804,1720119043742,-500.0,0.00013972,2]
[331175805,1720119043751,-815.69,0.00013972,2]
[331175806,1720119043762,-500.0,0.00013972,2]
[331175807,1720119043771,-500.0,0.00013972,2]
[331175808,1720119043781,-500.0,0.00013972,2]
[331175809,1720119043790,-500.0,0.00013972,2]
[331175810,1720119043799,-514.4775286,0.00013972,2]
[331175811,1720119043809,-500.0,0.00013972,2]
[331175812,1720119043819,-500.0,0.00013972,2]
[331175813,1720119043828,-500.0,0.00013972,2]
[331175814,1720119043837,-500.0,0.00013972,2]
[331175815,1720119043847,-393.80430714,0.00013972,2]
[331175816,1720119043968,-106.19569286,0.00013972,2]
[331175817,1720119043979,-500.0,0.00013972,2]
[331175818,1720119043988,-500.0,0.00013972,2]
[331175819,1720119043998,-500.0,0.00013972,2]
[331175820,1720119044007,-500.0,0.00013972,2]
[331175821,1720119044019,-500.0,0.00013972,2]
[331175822,1720119044030,-3.51714508,0.00013972,2]
[331175823,1720119044073,-496.48285492,0.00013972,2]
[331175824,1720119044083,-567.3829654,0.00013972,2]
[331175825,1720119044092,-316.04593415,0.00013972,2]
[331175826,1720119044101,-207.06,0.00013972,2]
[331175827,1720119044111,-529.3,0.00013972,2]
[331175828,1720119044120,-500.0,0.00013972,2]
[331175829,1720119044130,-19.04179636,0.00013972,2]
[331175834,1720119046632,-480.95820364,0.00013972,2]
[331175835,1720119046641,-523.53,0.00013972,2]
[331175836,1720119046650,-500.0,0.00013972,2]
[331175837,1720119046660,-500.0,0.00013972,2]
[331175838,1720119046670,-500.0,0.00013972,2]
[331175839,1720119046680,-500.0,0.00013972,2]
[331175840,1720119046689,-500.0,0.00013972,2]
[331175841,1720119046698,-693.94,0.00013972,2]
[331175842,1720119046707,-546.19,0.00013972,2]
[331175843,1720119046717,-500.0,0.00013972,2]
[331175844,1720119046726,-500.0,0.00013972,2]
[331175845,1720119046736,-500.0,0.00013972,2]
[331175846,1720119046746,-500.0,0.00013972,2]
[331175847,1720119046755,-500.0,0.00013972,2]
[331175848,1720119046765,-500.0,0.00013972,2]
[331175849,1720119046774,-500.0,0.00013972,2]
[331175850,1720119046784,-500.0,0.00013972,2]
[331175851,1720119046793,-500.0,0.00013972,2]
[331175852,1720119046803,-500.0,0.00013972,2]
[331175853,1720119046812,-500.0,0.00013972,2]
[331175854,1720119046821,-560.90704444,0.00013972,2]
[331175855,1720119046830,-500.0,0.00013972,2]
[331175856,1720119046839,-500.0,0.00013972,2]
[331175857,1720119046849,-500.0,0.00013972,2]
[331175858,1720119046859,-500.0,0.00013972,2]
[331175859,1720119046868,-500.0,0.00013972,2]
[331175860,1720119046877,-536.14,0.00013972,2]
[331175861,1720119046886,-500.0,0.00013972,2]
[331175862,1720119046895,-500.0,0.00013972,2]
[331175863,1720119046905,-500.0,0.00013972,2]
[331175865,1720119046915,-500.0,0.00013972,2]
[331175866,1720119046924,-266.85295956,0.00013972,2]
[331175868,1720119046934,-500.0,0.00013972,2]
[331175870,1720119046944,-500.0,0.00013972,2]
[331175872,1720119046956,-509.74369499,0.00013972,2]
[331175874,1720119046965,-500.0,0.00013972,2]
[331175876,1720119046974,-500.0,0.00013972,2]
[331175877,1720119046985,-388.6131425,0.00013972,2]
[331175879,1720119046994,-334.97790333,0.00013972,2]
[331175881,1720119047003,-500.0,0.00013972,2]
[331175882,1720119047012,-1784.92,0.00013972,2]
[331175883,1720119047022,-500.0,0.00013972,2]
[331175884,1720119047033,-1694.53,0.00013972,2]
[331175885,1720119047042,-411.25285483,0.00013972,2]
[331175886,1720119047051,-500.0,0.00013972,2]
[331175887,1720119047061,-500.0,0.00013972,2]
[331175888,1720119047071,-3816.88,0.00013972,2]
[331175889,1720119047081,-500.0,0.00013972,2]
[331175890,1720119047090,-500.0,0.00013972,2]
[331175891,1720119047099,-500.0,0.00013972,2]
[331175892,1720119047108,-964.24,0.00013972,2]
[331175893,1720119047118,-500.0,0.00013972,2]
[331175894,1720119047127,-4845.25,0.00013972,2]
[331175895,1720119047137,-500.0,0.00013972,2]
[331175896,1720119047148,-500.0,0.00013972,2]
[331175897,1720119047159,-500.0,0.00013972,2]
[331175898,1720119047170,-503.97738065,0.00013972,2]
[331175899,1720119047178,-500.0,0.00013972,2]
[331175900,1720119047191,-500.0,0.00013972,2]
[331175901,1720119047200,-500.0,0.00013972,2]
[331175902,1720119047210,-642.17,0.00013972,2]
[331175903,1720119047219,-500.0,0.00013972,2]
[331175904,1720119047229,-500.0,0.00013972,2]
[331175905,1720119047238,-230.75954041,0.00013972,2]
[331175906,1720119047247,-501.23190252,0.00013972,2]
[331175907,1720119047257,-500.0,0.00013972,2]
[331175908,1720119047266,-2766.04,0.00013972,2]
[331175909,1720119047275,-500.0,0.00013972,2]
[331175910,1720119047284,-503.47956204,0.00013972,2]
[331175911,1720119047294,-500.0,0.00013972,2]
[331175912,1720119047303,-500.0,0.00013972,2]
[331175913,1720119047312,-500.0,0.00013972,2]
[331175914,1720119047321,-500.0,0.00013972,2]
[331175915,1720119047330,-500.0,0.00013972,2]
[331175916,1720119047340,-1613.76,0.00013972,2]
[331175917,1720119047349,-500.0,0.00013972,2]
[331175918,1720119047358,-500.0,0.00013972,2]
[331175919,1720119047367,-500.0,0.00013972,2]
[331175920,1720119047377,-500.0,0.00013972,2]
[331175921,1720119047386,-500.0,0.00013972,2]
[331175922,1720119047395,-3429.51,0.00013972,2]
[331175923,1720119047405,-500.0,0.00013972,2]
[331175924,1720119047414,-1025.58,0.00013972,2]
[331175925,1720119047424,-500.0,0.00013972,2]
[331175926,1720119047433,-500.0,0.00013972,2]
[331175927,1720119047442,-11956.2,0.00013972,2]
[331175928,1720119047451,-431.70057087,0.00013972,2]
[331175929,1720119047460,-500.0,0.00013972,2]
[331175930,1720119047469,-785.28,0.00013972,2]
[331175931,1720119047479,-500.0,0.00013972,2]
[331175932,1720119047489,-749.15,0.00013972,2]
[331175933,1720119047498,-1180.32,0.00013972,2]
[331175934,1720119047507,-500.0,0.00013972,2]
[331175935,1720119047516,-3648.38,0.00013972,2]
[331175936,1720119047526,-1927.72,0.00013972,2]
[331175937,1720119047535,-594.95,0.00013972,2]
[331175938,1720119047545,-1884.17,0.00013972,2]
[331175939,1720119047554,-503.3282591,0.00013972,2]
[331175940,1720119047563,-500.0,0.00013972,2]
[331175941,1720119047572,-571.34,0.00013972,2]
[331175942,1720119047581,-875.42,0.00013972,2]
[331175943,1720119047590,-500.0,0.00013972,2]
[331175944,1720119047690,-524.10867881,0.00013972,2]
[331175945,1720119047700,-500.0,0.00013972,2]
[331175946,1720119047709,-500.0,0.00013972,2]
[331175947,1720119047718,-500.0,0.00013972,2]
[331175948,1720119047727,-500.0,0.00013972,2]
[331175949,1720119047737,-500.0,0.00013972,2]
[331175950,1720119047746,-500.0,0.00013972,2]
[331175951,1720119047755,-500.0,0.00013972,2]
[331175952,1720119047764,-544.42633485,0.00013972,2]
[331175953,1720119047774,-500.0,0.00013972,2]
[331175954,1720119047784,-500.0,0.00013972,2]
[331175955,1720119047795,-500.0,0.00013972,2]
[331175956,1720119047805,-548.85,0.00013972,2]
[331175957,1720119047817,-500.0,0.00013972,2]
[331175958,1720119047828,-500.0,0.00013972,2]
[331175959,1720119047837,-500.0,0.00013972,2]
[331175960,1720119047848,-500.0,0.00013972,2]
[331175961,1720119047858,-500.0,0.00013972,2]
[331175962,1720119047868,-202.12794864,0.00013972,2]
[331175963,1720119047877,-500.0,0.00013972,2]
[331175964,1720119047887,-179.41389408,0.00014034,2]
[331175965,1720119047897,-208.75741241,0.00014034,2]
[331175966,1720119047907,-425.55894176,0.00014146,2]
[331175967,1720119047916,-1169.9999996,0.00014236,2]
[331175968,1720119047925,-500.0,0.00014246,2]
[331175969,1720119047936,-500.0,0.00014246,2]
[331175970,1720119047952,-500.0,0.00014246,2]
[331175971,1720119047963,-500.0,0.00014246,2]
[331175972,1720119047972,-500.0,0.00014246,2]
[331175973,1720119047983,-500.0,0.00014246,2]
[331175974,1720119047992,-500.0,0.00014246,2]
[331175975,1720119048001,-500.0,0.00014246,2]
[331175976,1720119048011,-500.0,0.00014246,2]
[331175977,1720119048023,-500.0,0.00014246,2]
[331175978,1720119048032,-500.0,0.00014246,2]
[331175979,1720119048042,-500.0,0.00014246,2]
[331175980,1720119048051,-500.0,0.00014246,2]
[331175981,1720119048060,-500.0,0.00014246,2]
[331175982,1720119048072,-500.0,0.00014246,2]
[331175983,1720119048081,-912.43,0.00014246,2]
[331175984,1720119048090,-500.0,0.00014246,2]
[331175985,1720119048100,-500.0,0.00014246,2]
[331175986,1720119048110,-500.0,0.00014246,2]
[331175987,1720119048119,-500.0,0.00014246,2]
[331175988,1720119048128,-500.0,0.00014246,2]
[331175989,1720119048138,-500.0,0.00014246,2]
[331175990,1720119048147,-871.03,0.00014246,2]
[331175991,1720119048157,-500.0,0.00014246,2]
[331175992,1720119048166,-4341.69,0.00014246,2]
[331175993,1720119048175,-500.0,0.00014246,2]
[331175994,1720119048184,-2501.76,0.00014246,2]
[331175995,1720119048193,-500.0,0.00014246,2]
[331175996,1720119048203,-644.76,0.00014246,2]
[331175997,1720119048212,-500.0,0.00014246,2]
[331175998,1720119048223,-500.0,0.00014246,2]
[331175999,1720119048233,-815.69,0.00014246,2]
[331176000,1720119048243,-379.34136227,0.00014246,2]
[331176001,1720119048255,-500.0,0.00014246,2]
[331176002,1720119048264,-500.0,0.00014246,2]
[331176003,1720119048275,-500.0,0.00014246,2]
[331176004,1720119048286,-500.0,0.00014246,2]
[331176005,1720119048296,-500.0,0.00014246,2]
[331176006,1720119048305,-500.0,0.00014246,2]
[331176007,1720119048314,-500.0,0.00014246,2]
[331176008,1720119048323,-500.0,0.00014246,2]
[331176009,1720119048333,-500.0,0.00014246,2]
[331176010,1720119048342,-500.0,0.00014246,2]
[331176011,1720119048351,-500.0,0.00014246,2]
[331176012,1720119048360,-500.0,0.00014246,2]
[331176013,1720119048369,-500.0,0.00014246,2]
[331176014,1720119048379,-500.0,0.00014246,2]
[331176015,1720119048387,-500.0,0.00014246,2]
[331176016,1720119048396,-500.0,0.00014246,2]
[331176017,1720119048407,-693.94,0.00014246,2]
[331176018,1720119048416,-546.19,0.00014246,2]
[331176019,1720119048424,-500.0,0.00014246,2]
[331176020,1720119048434,-426.55117663,0.00014246,2]
[331176021,1720119048443,-500.0,0.00014246,2]
[331176022,1720119048452,-500.0,0.00014246,2]
[331176023,1720119048461,-500.0,0.00014246,2]
[331176024,1720119048471,-500.0,0.00014246,2]
[331176025,1720119048481,-500.0,0.00014246,2]
[331176026,1720119048490,-536.14,0.00014246,2]
[331176027,1720119048499,-500.0,0.00014246,2]
[331176028,1720119048508,-500.0,0.00014246,2]
[331176029,1720119048516,-500.0,0.00014246,2]
[331176030,1720119048525,-500.0,0.00014246,2]
[331176031,1720119048534,-1784.92,0.00014246,2]
[331176032,1720119048544,-500.0,0.00014246,2]
[331176033,1720119048553,-1694.53,0.00014246,2]
[331176034,1720119048563,-500.0,0.00014246,2]
[331176035,1720119048571,-3816.88,0.00014246,2]
[331176036,1720119048581,-500.0,0.00014246,2]
[331176037,1720119048590,-500.0,0.00014246,2]
[331176038,1720119048599,-500.0,0.00014246,2]
[331176039,1720119048608,-964.24,0.00014246,2]
[331176040,1720119048618,-500.0,0.00014246,2]
[331176041,1720119048627,-4845.25,0.00014246,2]
[331176042,1720119048637,-232.24153934,0.00014246,2]
[331176043,1720119048646,-500.0,0.00014246,2]
[331176044,1720119048656,-500.0,0.00014246,2]
[331176045,1720119048666,-642.17,0.00014246,2]
[331176046,1720119048676,-500.0,0.00014246,2]
[331176047,1720119048686,-500.0,0.00014246,2]
[331176048,1720119048695,-500.0,0.00014246,2]
[331176049,1720119048704,-2766.04,0.00014246,2]
[331176050,1720119048714,-500.0,0.00014246,2]
[331176051,1720119048723,-500.0,0.00014246,2]
[331176052,1720119048733,-1613.76,0.00014246,2]
[331176053,1720119048743,-500.0,0.00014246,2]
[331176054,1720119048752,-500.0,0.00014246,2]
[331176055,1720119048761,-178.65620496,0.00014246,2]
[331176056,1720119048771,-500.0,0.00014246,2]
[331176057,1720119048780,-3429.51,0.00014246,2]
[331176058,1720119048790,-1025.58,0.00014246,2]
[331176059,1720119048799,-500.0,0.00014246,2]
[331176060,1720119048808,-11956.2,0.00014246,2]
[331176061,1720119048818,-500.0,0.00014246,2]
[331176062,1720119048828,-785.28,0.00014246,2]
[331176063,1720119048837,-608.6,0.00014246,2]
[331176064,1720119048847,-749.15,0.00014246,2]
[331176065,1720119048855,-1180.32,0.00014246,2]
[331176066,1720119048865,-500.0,0.00014246,2]
[331176067,1720119048874,-3648.38,0.00014246,2]
[331176068,1720119048883,-1927.72,0.00014246,2]
[331176069,1720119048893,-594.95,0.00014246,2]
[331176070,1720119048902,-1884.17,0.00014246,2]
[331176071,1720119048911,-500.0,0.00014246,2]
[331176072,1720119048925,-875.42,0.00014246,2]
[331176073,1720119048934,-500.0,0.00014246,2]
[331176074,1720119048946,-608.48,0.00014246,2]
[331176075,1720119048956,-500.0,0.00014246,2]
[331176076,1720119048965,-500.0,0.00014246,2]
[331176077,1720119048974,-500.0,0.00014246,2]
[331176078,1720119048985,-500.0,0.00014246,2]
[331176079,1720119048994,-548.85,0.00014246,2]
[331176080,1720119049003,-500.0,0.00014246,2]
[331176081,1720119049013,-500.0,0.00014246,2]
[331176082,1720119049025,-425.55894176,0.0001442,2]
[331176083,1720119049035,-1169.9999996,0.0001451,2]
[331176084,1720119049044,-500.0,0.0001452,2]
[331176085,1720119049053,-485.59312174,0.0001452,2]
[331176086,1720119049068,-14.40687826,0.0001452,2]
[331176087,1720119049078,-500.0,0.0001452,2]
[331176088,1720119049089,-500.0,0.0001452,2]
[331176089,1720119049099,-500.0,0.0001452,2]
[331176090,1720119049109,-500.0,0.0001452,2]
[331176091,1720119049118,-500.0,0.0001452,2]
[331176092,1720119049128,-675.45713908,0.0001452,2]
[331176093,1720119049140,-236.97286092,0.0001452,2]
[331176094,1720119049149,-500.0,0.0001452,2]
[331176095,1720119049159,-500.0,0.0001452,2]
[331176096,1720119049169,-568.75938068,0.0001452,2]
[331176097,1720119049179,-871.03,0.0001452,2]
[331176098,1720119049188,-4341.69,0.0001452,2]
[331176099,1720119049197,-500.0,0.0001452,2]
[331176100,1720119049206,-2501.76,0.0001452,2]
[331176101,1720119049215,-644.76,0.0001452,2]
[331176102,1720119049224,-500.0,0.0001452,2]
[331176103,1720119049233,-815.69,0.0001452,2]
[331176104,1720119049243,-500.0,0.0001452,2]
[331176105,1720119049252,-500.0,0.0001452,2]
[331176106,1720119049262,-500.0,0.0001452,2]
[331176107,1720119049271,-500.0,0.0001452,2]
[331176108,1720119049280,-500.0,0.0001452,2]
[331176109,1720119049290,-500.0,0.0001452,2]
[331176110,1720119049299,-500.0,0.0001452,2]
[331176111,1720119049308,-500.0,0.0001452,2]
[331176112,1720119049318,-485.00134534,0.0001452,2]
[331176113,1720119049326,-500.0,0.0001452,2]
[331176114,1720119049336,-500.0,0.0001452,2]
[331176115,1720119049345,-693.94,0.0001452,2]
[331176116,1720119049354,-546.19,0.0001452,2]
[331176117,1720119049363,-500.0,0.0001452,2]
[331176118,1720119049373,-500.0,0.0001452,2]
[331176119,1720119049384,-500.0,0.0001452,2]
[331176120,1720119049394,-536.14,0.0001452,2]
[331176121,1720119049403,-500.0,0.0001452,2]
[331176122,1720119049413,-500.0,0.0001452,2]
[331176123,1720119049422,-500.0,0.0001452,2]
[331176124,1720119049432,-1784.92,0.0001452,2]
[331176125,1720119049441,-474.62401156,0.0001452,2]
[331176126,1720119049450,-1694.53,0.0001452,2]
[331176127,1720119049459,-500.0,0.0001452,2]
[331176128,1720119049468,-3816.88,0.0001452,2]
[331176129,1720119049477,-964.24,0.0001452,2]
[331176130,1720119049486,-4845.25,0.0001452,2]
[331176131,1720119049495,-642.17,0.0001452,2]
[331176132,1720119049595,-361.19343112,0.0001452,2]
[331176133,1720119049606,-500.0,0.0001452,2]
[331176134,1720119049615,-2766.04,0.0001452,2]
[331176135,1720119049625,-500.0,0.0001452,2]
[331176136,1720119049634,-500.0,0.0001452,2]
[331176137,1720119049643,-1613.76,0.0001452,2]
[331176138,1720119049654,-523.28919743,0.0001452,2]
[331176139,1720119049663,-3429.51,0.0001452,2]
[331176140,1720119049673,-1025.58,0.0001452,2]
[331176141,1720119049682,-11956.2,0.0001452,2]
[331176142,1720119049691,-56.8965679,0.0001452,2]
[331176143,1720119049748,157.39913555,9.999e-05,2]
[331176144,1720119049900,-1325.68,0.00014245,2]
[331176145,1720119049910,-1325.68,0.00014245,2]
[331176146,1720119049920,-1325.68,0.00014518,2]
[331176147,1720119049930,-728.3834321,0.0001452,2]
[331176148,1720119049939,-749.15,0.0001452,2]
[331176149,1720119049952,-1180.32,0.0001452,2]
[331176150,1720119049962,-500.0,0.0001452,2]
[331176151,1720119049971,-3648.38,0.0001452,2]
[331176152,1720119049980,-1927.72,0.0001452,2]
[331176153,1720119049991,-594.95,0.0001452,2]
[331176154,1720119049999,-1884.17,0.0001452,2]
[331176155,1720119050009,-500.0,0.0001452,2]
[331176156,1720119050018,-125.77138839,0.0001452,2]
[331176157,1720119050182,-749.64861161,0.0001452,2]
[331176158,1720119050191,-493.77075503,0.0001452,2]
[331176159,1720119050203,-500.0,0.0001452,2]
[331176160,1720119050212,-500.0,0.0001452,2]
[331176161,1720119050222,-548.85,0.0001452,2]
[331176162,1720119050231,-375.07986259,0.00014694,2]
[331176163,1720119050243,-50.47907917,0.00014694,2]
[331176164,1720119050252,-584.9999998,0.00014784,2]
[331176165,1720119050262,-1286.25239983,0.00014794,2]
[331176166,1720119050271,-500.0,0.00014794,2]
[331176167,1720119050280,-500.0,0.00014794,2]
[331176168,1720119050289,-67.3381112,0.00014794,2]
[331176169,1720119050512,-500.0,0.00013698,2]
[331176170,1720119050523,-500.0,0.00013698,2]
[331176171,1720119050532,-636.41,0.00013972,2]
[331176172,1720119050541,-1325.68,0.00014519,2]
[331176173,1720119050550,-541.11590812,0.00014519,2]
[331176174,1720119050562,-784.56409188,0.00014519,2]
[331176175,1720119050571,-1325.68,0.00014793,2]
[331176176,1720119050580,-1325.68,0.00014793,2]
[331176177,1720119050590,-432.6618888,0.00014794,2]
[331176178,1720119050599,-500.0,0.00014794,2]
[331176179,1720119050608,-500.0,0.00014794,2]
[331176180,1720119050617,-912.43,0.00014794,2]
[331176181,1720119050627,-205.53579759,0.00014794,2]
[331176182,1720119050638,-294.46420241,0.00014794,2]
[331176183,1720119050647,-517.22618251,0.00014794,2]
[331176184,1720119050659,-790.21669912,0.00014794,2]
[331176185,1720119050671,-80.81330088,0.00014794,2]
[331176186,1720119050680,-3501.39639691,0.00014794,2]
[331176187,1720119050691,-840.29360309,0.00014794,2]
[331176188,1720119050700,-500.0,0.00014794,2]
[331176189,1720119050709,-429.81955012,0.00014794,2]
[331176190,1720119050721,-2071.94044988,0.00014794,2]
[331176191,1720119050731,-644.76,0.00014794,2]
[331176192,1720119050742,-500.0,0.00014794,2]
[331176193,1720119050752,-815.69,0.00014794,2]
[331176194,1720119050761,-500.0,0.00014794,2]
[331176195,1720119050771,-500.0,0.00014794,2]
[331176196,1720119050781,-500.0,0.00014794,2]
[331176197,1720119050790,-500.0,0.00014794,2]
[331176198,1720119050799,-500.0,0.00014794,2]
[331176199,1720119050808,-500.0,0.00014794,2]
[331176200,1720119050817,-500.0,0.00014794,2]
[331176201,1720119050826,-500.0,0.00014794,2]
[331176202,1720119050835,-500.0,0.00014794,2]
[331176203,1720119050844,-459.51027222,0.00014794,2]
[331176204,1720119050856,-40.48972778,0.00014794,2]
[331176205,1720119050865,-552.78055714,0.00014794,2]
[331176206,1720119051180,-500.0,0.00013698,2]
[331176207,1720119051270,-500.0,0.00013972,2]
[331176208,1720119051280,-141.15944286,0.00014794,2]
[331176209,1720119051289,-546.19,0.00014794,2]
[331176210,1720119051298,-500.0,0.00014794,2]
[331176211,1720119051308,-500.0,0.00014794,2]
[331176212,1720119051317,-500.0,0.00014794,2]
[331176213,1720119051326,-536.14,0.00014794,2]
[331176214,1720119051335,-500.0,0.00014794,2]
[331176215,1720119051345,-500.0,0.00014794,2]
[331176216,1720119051354,-500.0,0.00014794,2]
[331176217,1720119051363,-1784.92,0.00014794,2]
[331176218,1720119051373,-1694.53,0.00014794,2]
[331176219,1720119051382,-500.0,0.00014794,2]
[331176220,1720119051391,-928.18382062,0.00014794,2]
[331176223,1720119111062,182.58952313,9.999e-05,2]
[331176224,1720119129315,525.56962949,0.0001,2]
[331176225,1720119129606,318.55085575,9.999e-05,2]
[331176226,1720119137904,321.1,0.00010959,2]
[331176227,1720119148527,456.31039489,9.999e-05,2]
[331176228,1720119167411,807.88648297,9.999e-05,2]
[331176229,1720119203574,510.78718971,9.999e-05,2]
[331176230,1720119215389,197.5593118,9.999e-05,2]
[331176231,1720119219611,194.75212785,9.999e-05,2]
[331176232,1720119220322,172.86021264,9.999e-05,2]
[331176233,1720119223234,877.0,0.00012021,2]
[331176234,1720119264852,154.86836189,0.0001,2]
[331176235,1720119269510,-2511.46663348,0.00012021,2]
[331176236,1720119269538,-350.30005955,0.0001212,2]
[331176237,1720119269550,-2161.16657393,0.00013598,2]
[331176238,1720119269570,-71.95346197,0.00013598,2]
[331176239,1720119269582,-244.11327107,0.00013697,2]
[331176241,1720119360382,155.02402872,0.0001,2]
[331176244,1720119524337,207.48571918,9.999e-05,2]
[331176247,1720119666604,797.86976446,9.999e-05,2]
[331176250,1720119843514,776.91953525,9.999e-05,2]
[331176251,1720119871771,565.7746747,9.999e-05,2]
[331176253,1720119949355,208.3392434,9.999e-05,2]
[331176254,1720119957769,776.91953525,9.999e-05,2]
[331176255,1720119973508,776.91953525,9.999e-05,2]
[331176260,1720120092532,821.32047839,9.999e-05,2]